Cogmind - Beta 16.1 @@@ ROGUE MODE // 2026.02.18 @ 10:18:01 Player: Voldy Result: Destroyed by G-47 Trooper with Particle Gun Performance ------------- Evolutions (0) 0 Regions Visited (2) 400 Robots Destroyed (15) 75 Value Destroyed (326) 326 Prototype IDs (0) 0 Alien Tech Used (0) 0 Bonus (0) 0 TOTAL SCORE: 801 Bonus ------- None Cogmind --------- Core Integrity 0/250 Matter 280/300 Energy 224/250 System Corruption 2% Temperature Hot (240) Movement Treading (160) Location -10/Mines Parts ------- > --- POWER (1) -------- Ion Engine > --- PROPULSION (2) --- Light Treads Wheel > --- UTILITY (2) ------ Small Storage Unit Improved Targeting Computer > --- WEAPON (2) ------- Small Laser Small Laser > --- INVENTORY (8) ---- Ion Engine Light Ion Engine Light Treads Heat Sink Visual Processing Unit Targeting Computer Peak State ------------ > --- POWER ------------ Light Ion Engine > --- PROPULSION ------- Wheel Compact Wheel > --- UTILITY ---------- Small Storage Unit Improved Targeting Computer > --- WEAPON ----------- Medium Laser Small Laser > --- INVENTORY -------- Ion Engine Ion Engine Light Treads Light Treads Heat Sink Small Laser Small Laser [Rating: 8] Favorites ----------- Power Light Ion Engine Engine Light Ion Engine Propulsion Wheel Treads Light Treads Leg Aluminum Leg Wheel Wheel Utility Small Storage Unit Device Heat Sink Storage Small Storage Unit Processor Improved Targeting Computer Weapon Small Laser Energy Gun Small Laser Build | -11 -10 -10 ------- Run | Yrd Mat Min Slots Evolved . | . . . Power . | . . . Propulsion . | . . . Utility . | . . . Weapon . | . . . Parts Attached 9 | . 7 2 Power 1 | . 1 . Engine 1 | . 1 . Core . | . . . Reactor . | . . . Propulsion 3 | . 3 . Treads 1 | . 1 . Leg . | . . . Wheel 2 | . 2 . Hover . | . . . Flight . | . . . Utility 2 | . 2 . Device 1 | . 1 . Storage . | . . . Processor 1 | . 1 . Hackware . | . . . Protection . | . . . Artifact . | . . . Weapon 3 | . 1 2 Energy Gun 3 | . 1 2 Energy Cannon . | . . . Ballistic Gun . | . . . Ballistic Cannon . | . . . Launcher . | . . . Special Weapon . | . . . Impact Weapon . | . . . Slashing Weapon . | . . . Piercing Weapon . | . . . Special Melee Weapon . | . . . Unidentified Prototypes . | . . . Parts Lost 5 | . 3 2 Power 1 | . 1 . Propulsion 1 | . 1 . Utility . | . . . Weapon 3 | . 1 2 Highest Loss Streak 2 | . 2 2 To Critical Strikes . | . . . Average Backups 7 | . 7 8 Power 1 | . 1 2 Propulsion 2 | . 2 1 Utility 1 | . 1 3 Weapon 1 | . 1 2 Tool/Special . | . . . Unused Backups 5 | . 1 4 Power 2 | . . 2 Propulsion . | . . . Utility 3 | . 1 2 Weapon . | . . . Tool/Special . | . . . Average Slot Usage (%) 99 | . 98 100 Engine 13 | . 13 14 Treads 3 | . 1 14 Leg 7 | . 9 . Wheel 16 | . 17 14 Device 5 | . 6 . Storage 14 | . 14 14 Processor 8 | . 7 14 Energy Gun 28 | . 28 28 Peak Build Rating 8 | . 8 8 Average Rating 7 | . 7 7 On Entrance 6 | 6 6 8 Avg Prop Armor Cover (%) 5 | . 5 5 Naked Turns . | . . . Heaviest Build 13 | 11 13 12 Greatest Support 26 | 20 26 20 Greatest Overweight (x) . | . . . Average Overweight (x) . | . . . Largest Inventory Capacity 8 | . 8 8 Average Capacity 8 | . 8 8 Most Carried 8 | . 8 8 Average Carried 7 | . 7 7 Final Capacity 8 | 8 8 8 Final Carried 8 | 6 8 6 Class Distribution -------------------- 100% | Mutant Dominant Class ---------------- Mutant | -10/Materials Mutant | -10/Mines Resources | -11 -10 -10 ----------- Run | Yrd Mat Min Matter Collected 265 | 169 96 . Remotely . | . . . Salvage Created 400 | . 321 79 Parts 22 | . 13 9 Haulers Intercepted . | . . . Recyclers Shooed 1 | . 1 . Parts Field Recycled . | . . . Retrieved Matter . | . . . Parts Self-Destructed . | . . . Prevented . | . . . Parts Restored . | . . . Kills | -11 -10 -10 ------- Run | Yrd Mat Min Combat Hostiles Destroyed 14 | . 9 5 Guns 13 | . 8 5 Classes Destroyed 3 | . 3 . Watcher 1 | . 1 . Swarmer 8 | . 3 5 Grunt 6 | . 6 . Best Kill Streak 3 | . 3 3 Combat Bots Only 3 | . 3 3 Max Kills in Single Turn 1 | . 1 1 Gunslinging . | . . . Exploded . | . . . Melee . | . . . Uniques/NPCs Destroyed . | . . . Combat | -11 -10 -10 -------- Run | Yrd Mat Min Hostile Shots Fired 99 | . 53 46 Missed 19 | . 9 10 Hits 80 | . 44 36 Projectile 80 | . 44 36 Critical Strikes 1 | . . 1 Damage Taken 864 | . 500 364 Core 252 | . 126 126 Absorbed by Shields . | . . . Core Remaining (%) 100 | 100 . . Volleys Fired 62 | . 47 15 Largest 2 | . 2 2 Hottest 90 | . 90 80 Shots Fired 124 | . 94 30 Gun 124 | . 94 30 Cannon . | . . . Launcher . | . . . Special . | . . . Kinetic . | . . . Thermal 124 | . 94 30 Explosive . | . . . Electromagnetic . | . . . Robot Hit Streak 9 | . 9 5 Robot Miss Streak 5 | . 5 3 Penetration Max . | . . . Secondary Targets 2 | . . 2 Max Gunslinging Chain 1 | . . 1 Shots Hit Robots 79 | . 64 15 Core Hits 25 | . 19 6 Critical Kills . | . . . Critical Parts Destroyed . | . . . Critical Strikes 2 | . 2 . Burn 2 | . 2 . Melee Attacks . | . . . Impact . | . . . Slashing . | . . . Piercing . | . . . Sneak Attacks . | . . . Combat Hostiles . | . . . Follow-up Attacks . | . . . Damage Inflicted 917 | . 753 164 Guns 912 | . 748 164 Cannons . | . . . Explosions . | . . . Melee . | . . . Ramming 5 | . 5 . Kinetic . | . . . Thermal 912 | . 748 164 Explosive . | . . . Electromagnetic . | . . . Impact . | . . . Slashing . | . . . Piercing . | . . . Highest Corruption 2 | . 2 2 Average Corruption 2 | . 2 2 Corruption Purged . | . . . Corruption Blocked . | . . . Effects 1 | . . 1 Heat Flow Errors 1 | . . 1 Overload Shots . | . . . Overflow Damage . | . . . Projectiles . | . . . Explosions . | . . . Melee . | . . . Knockbacks . | . . . Impact . | . . . Kinetic . | . . . Secondary . | . . . Self-Inflicted Damage 2 | . 2 . Shots . | . . . Rammed 1 | . 1 . Targets Rammed 1 | . 1 . Kicked . | . . . Crushed . | . . . Highest Temperature 250 | . 218 250 Average Temperature 83 | . 77 99 Received Heat Transfer 324 | . 219 105 Siege Activations . | . . . Martial Activations . | . . . Shielding Activations . | . . . Robots Disrupted . | . . . Combat Hostiles . | . . . Robots Corrupted . | . . . Combat Hostiles . | . . . Parts Fried . | . . . Impact Corruptions . | . . . Robots Melted 1 | . 1 . Combat Hostiles 1 | . 1 . Parts Melted 5 | . 5 . Heat Transferred 2484 | . 2109 375 Parts Sabotaged . | . . . Parts Stolen . | . . . Parts Stripped . | . . . Power Chain Reactions . | . . . Alert | -11 -10 -10 ------- Run | Yrd Mat Min Maximum Alert Level . | . . . Low Security (%) 100 | . 100 100 Level 1 . | . . . Level 2 . | . . . Level 3 . | . . . Level 4 . | . . . Level 5 . | . . . High Security . | . . . Max Security . | . . . Peak Influence 101 | . 60 101 Initial 6 | . . 6 Average 28 | . 20 62 Influence Increases 359 | . 224 135 Destroy 0b10 Robot/C 280 | . 180 100 Destroy 0b10 Robot/NC 5 | . 5 . Destroy Leader 52 | . 32 20 Successful Hack 7 | . 7 . Lose Combat Pursuer 15 | . . 15 Influence Decreases 288 | . 208 80 Entered New Map 10 | . . 10 Time Decay 233 | . 183 50 Lost Part 45 | . 25 20 Squads Dispatched . | . . . Investigation . | . . . Extermination . | . . . Reinforcement . | . . . Assault . | . . . Garrison . | . . . Intercept . | . . . Searches Triggered . | . . . Construction Impeded . | . . . Haulers Reinforced . | . . . Active Scanning Responses . | . . . Cargo Convoy Interrupts . | . . . Stealth | -11 -10 -10 --------- Run | Yrd Mat Min Distress Signals 1 | . 1 . Communications Jammed . | . . . Distress Signals . | . . . Times Spotted 22 | . 14 8 Peak Tracking Total 4 | . 4 4 Tactical Retreats 1 | . . 1 Traps | -11 -10 -10 ------- Run | Yrd Mat Min Traps Triggered 1 | . 1 . Indirectly . | . . . Trap Hack Attempts . | . . . Triggered . | . . . Disarmed . | . . . Reprogrammed . | . . . Reused . | . . . Traps Extracted . | . . . Installed . | . . . Triggered . | . . . Machines | -11 -10 -10 ---------- Run | Yrd Mat Min Machines Disabled . | . . . Max in Single Turn . | . . . Machines Repaired . | . . . Machines Dismantled . | . . . Machines Sabotaged . | . . . Overloaded Fab Kills . | . . . Hacking | -11 -10 -10 --------- Run | Yrd Mat Min Machines Accessed 4 | . 4 . Terminals 4 | . 4 . Fabricators . | . . . Repair Stations . | . . . Recycling Units . | . . . Scanalyzers . | . . . Garrison Access . | . . . Total Hacks 9 | . 9 . Successful 1 | . 1 . Failed 8 | . 8 . Catastrophic 2 | . 2 . Database Lockouts . | . . . Manual 7 | . 7 . Terminals 9 | . 9 . Fabricators . | . . . Repair Stations . | . . . Recycling Units . | . . . Scanalyzers . | . . . Garrison Access . | . . . Terminal Hacks 1 | . 1 . Branch Access Points 1 | . 1 . Fabricator Hacks . | . . . Repair Station Hacks . | . . . Recycling Unit Hacks . | . . . Scanalyzer . | . . . Garrison Access Hacks . | . . . Unauthorized Hacks . | . . . Terminals . | . . . Fabricators . | . . . Repair Stations . | . . . Recycling Units . | . . . Scanalyzers . | . . . Garrison Access . | . . . Data Cores Recovered . | . . . Used . | . . . Hacking Detections 4 | . 4 . Full Trace Events . | . . . Feedback Events . | . . . Feedback Blocked . | . . . Robot Schematics Acquired . | . . . Robots Built . | . . . Authchips . | . . . Time . | . . . Total Robot Build Rating . | . . . Part Schematics Acquired . | . . . Parts Built . | . . . Authchips . | . . . Time . | . . . Total Part Build Rating . | . . . Part Studies Acquired . | . . . Parts Repaired . | . . . Time . | . . . Parts Recycled . | . . . Recycled Matter . | . . . Retrieved Matter . | . . . Retrieved Components . | . . . Parts Scanalyzed . | . . . Part Schematics Acquired . | . . . Parts Damaged . | . . . Bothacking | -11 -10 -10 ------------ Run | Yrd Mat Min Used RIF Installer . | . . . Robots Hacked . | . . . Non-combat . | . . . Combat . | . . . Robot Hacks Applied . | . . . Relay Couplers Released . | . . . Fabnet Peak Effective % . | . . . Robots Rewired . | . . . Allies Hacked . | . . . Hacks Repelled . | . . . Allies | -11 -10 -10 -------- Run | Yrd Mat Min Total Allies . | . . . Largest Group . | . . . Highest-Rated Group . | . . . Highest-Rated Ally . | . . . Total Orders . | . . . Ally Attacks . | . . . Total Damage . | . . . Kills . | . . . Allies Corrupted . | . . . Allies Melted . | . . . Intel | -11 -10 -10 ------- Run | Yrd Mat Min Active Infowar (turns) . | . . . Robot Analysis Total . | . . . Derelict Logs Recovered . | . . . Drone Launches . | . . . Drone Recoveries . | . . . Exploration | -11 -10 -10 ------------- Run | Yrd Mat Min Turns Passed 647 | . 531 116 Spaces Moved 378 | 1 333 44 Core . | . . . Treads 69 | . 25 44 Legs 74 | 1 73 . Wheels 235 | . 235 . Hover . | . . . Flight . | . . . Fastest Speed 90 | 120 90 160 Average Speed 108 | 120 101 160 Slowest Speed 160 | 120 160 160 Overloaded Moves . | . . . Propulsion Burnouts . | . . . Robots Hopped . | . . . Potential Cave-ins . | . . . Cave-ins Triggered . | . . . Exploration Rate (%) 32 | 1 78 17 Regions Visited 2 Branch Regions 1 Pre-discovered Areas . | . . . Known Exits Taken 1 | . 1 . Unknown Exits Taken 1 | 1 . . Scrap Searched . | . . . Spaces Dug . | . . . Terrain Destroyed . | . . . Melee . | . . . Projectile . | . . . AOE . | . . . Terrain Rammed . | . . . Walls Destroyed . | . . . Machines Disabled . | . . . Actions | -11 -10 -10 --------- Run | Yrd Mat Min Total 495 | . 434 61 Wait 30 | . 30 . Move 376 | . 332 44 Hop . | . . . Pick Up 11 | . 11 . Fast Attach . | . . . Attach 9 | . 7 2 Detach 1 | . 1 . Swap . | . . . Drop 5 | . 5 . Fire 62 | . 47 15 Melee . | . . . Ram 1 | . 1 . Kick . | . . . Crush . | . . . Escape Stasis . | . . . Rewire . | . . . Trap . | . . . Miscellaneous . | . . . Route ------- -11/Scrapyard -10/Materials (discovered 3 exits: [*Mat] / *Min x2) -10/Mines History --------- Turn | Location | Event 1 | -11/Scrapyard | Discovered new exit (range 0) 1 | -11/Scrapyard | Entered Materials 35 | -10/Materials | Identified exit to Mines 252 | -10/Materials | Discovered new exit (range 16) 305 | -10/Materials | Build established: Mutant 476 | -10/Materials | Core integrity fell below 50% 532 | -10/Materials | Entered Mines 639 | -10/Mines | Core integrity fell below 20% 648 | -10/Mines | Destroyed by G-47 Trooper with Particle Gun Last Messages --------------- 00477_ G-34 Mercenary destroyed. 00492_ Acquired 15 matter. 00496_ Acquired Heat Sink. 00499_ Acquired Sml. Laser. 00506_ K-01 Serf collects debris. 00516_ Triggered Shock Trap. 00516_ The floor emits a surge of raw power. 00516_ System corrupted (+2). 00517_ K-01 Serf collects debris. 00521_ U-05 Engineer lays Concrete. LOCATION=MINES GOAL=ESCAPE 00532_ S-10 Pest destroyed. 00538_ Switching to secondary target: S-10 Pest. 00541_ S-10 Pest destroyed. 00603_ System corrupted: Heat flow error (+222). 00616_ S-10 Pest destroyed. 00627_ Switching to secondary target: G-47 Trooper. 00634_ Critical hit (Burn: +37). 00642_ Sml. Laser destroyed. Map ----- +----------------------------------------------------+ | ?????????????????????????????????????????????????? | | ?????????????????????????????????????????????????? | | ?????????????????????????????????????????????????? | | ?????????????????????????????????????????????????? | | ?????????????????????????????????????????????????? | | ?????????????????????????????????????????????????? | | ?????????????????????????????????????????????????? | | ?????????????????????????????????????????????????? | | ?????????????????????????????????????????????????? | | ?????????????????????????????????????????????????? | | ?????????????????????????????????????#####???????? | | ????????????????????????????????????## ##??????? | | ?????????????????????????????????#### #??????? | | ????????????????????????????????## #??????? | | ????????????????????????????????# """ #???????? | | ????????????????????????????????# """ #????????? | | ????????????????????????????????# """ #????????? | | ???????????????????????##????????# """ #????????? | | ??????????????????????? ?????????# #????????? | | ???????????????????????# ??######## ### #????????? | | ???????????????????????# ?## #?# #????????? | | ???????????????????????# ## #?# ####?????? | | ??????????????????????## g #######?# #?????? | | ??????????????????????# #???????#### #?????? | | ?????????????????????## ##??????????# #?????? | | ?????????????????????# @ ##???????????# #?????? | | ?????????????? g ##????????????# #?????? | | ?????????????######## [##?????????????# #?????? | | ????????????????????## s*%#??????????????# #?????? | | ?????????????????????# ##%#??????????????# #?????? | | ?????????????????????# ?#=#??????????????# #?????? | | ?????????????????????#?? #?????########## ####??? | | ????????????????????????# #?????# #??? | | ????????????????????????# #?????# [%= #??? | | ????????????????????????# ??????# #??? | | ????????????????????????# ??????# """ """ #??? | | ????????????????????????? ??????# %* """ """ #??? | | ????????????????????????? ??????# *%=""" """ #??? | | ????????????????????????? ??????# = #??? | | ????????????????????????? ??????# """ """ """ #??? | | ????????????????????????? ??????# """ """ """ #??? | | ????????????????????????????????# """ """ """????? | | ????????????????????????????????# ?????? | | ????????????????????????????????# """ """ ""?????? | | ????????????????????????????????# """ """ "??????? | | ????????????????????????????????# ??" """ ???????? | | ????????????????????????????????# ??? ? ???????? | | ?????????????????????????????????????##??#???????? | | ?????????????????????????????????????????????????? | | ?????????????????????????????????????????????????? | +----------------------------------------------------+ Best States ------------- Heat Dissipation 35 Energy Generation 10 Energy Capacity 250 Matter Stores 300 Matter Capacity 300 Sight Range 16 Terrain Scan Density 10 Evasion (%) 55 Targeting Accuracy 6 Recoil Reduction 1 Item Schematics ----------------- None Robot Schematics ------------------ None Fabricated ------------ Nothing Repaired ---------- Nothing Studied --------- None Alien Tech Used ----------------- None Achievements -------------- None Challenges ------------ None Game ------ Seed ChargeMultitargetingSystem Manual? 0 Play Time 00:08:35 Cumulative 14.8 hours Start 2026.02.18 @ 10:08:57 End 2026.02.18 @ 10:18:01 Sessions 1 Manual Loads 0 Difficulty Rogue Special Mode None Game No. 36 Rogue 27 Adventurer 9 Explorer 0 Win Type - Total 0 Types 0/0/0/0/0/0/0/0/0/0 Lore% 17 Gallery% 18 Achievement% 16 Wizard Run 0 Options --------- Layout 0 ASCII 0 Keyboard 1 Movement Numpad Keybinds 0 Fullscreen 2 Font 18/SmallcapsGlow Map View 76x50 Zoom Use 0% Tactical HUD 1 Map Filters NONE Filters NONE Steam 1 RUN: 5a08b021-bf2c-4766-bb81-f269593e2a10